bitfinex-derivatives/quotes_ETHF0:USTF0_20240923
["timestamp","ask_amount","ask_price","bid_price","bid_amount"]
[1727078751846,0.94551,2644.2,2643.4,2.458]
[1727078752034,5.2678,2644.0,2643.4,0.398]
[1727078752238,0.37827,2643.8,2643.4,0.398]
[1727078752438,0.37828,2643.7,2643.4,0.398]
[1727078753148,0.37828,2643.7,2643.4,2.458]
[1727078753643,0.3673,2643.9,2643.4,2.83631]
[1727078753845,0.37825,2643.9,2643.4,2.83631]
[1727078754043,0.3673,2644.1,2643.4,2.458]
[1727078754238,0.37823,2644.0,2643.4,2.458]
[1727078754443,0.37823,2644.0,2643.6,0.37829]
[1727078754646,0.37823,2644.0,2643.7,0.3959]
[1727078754853,0.37823,2644.0,2643.7,0.7691]
[1727078755148,0.37824,2643.9,2643.7,0.7691]
[1727078755346,0.37826,2643.8,2643.7,0.7691]
[1727078755645,0.37825,2643.9,2643.7,0.7691]
[1727078756149,0.37826,2643.8,2643.7,0.7691]
[1727078756337,0.3673,2644.1,2643.7,0.7691]
[1727078756542,0.37826,2643.9,2643.7,0.7691]
[1727078756841,2.4273,2644.1,2643.4,0.398]
[1727078757040,0.37828,2643.7,2643.4,0.7712]
[1727078757349,0.37829,2643.6,2643.4,0.7712]
[1727078757652,0.37828,2643.7,2643.4,0.7712]
[1727078759338,0.94565,2643.8,2643.4,0.7712]
[1727078759543,0.3783,2643.6,2643.4,0.7712]
[1727078759744,4.30615815,2644.0,2643.4,0.7712]
[1727078760040,0.37828,2643.7,2643.4,0.7712]
[1727078760245,0.37827,2643.8,2643.4,0.7712]
[1727078760446,3.2078,2644.0,2643.5,2.06]
[1727078760647,0.74553,2644.1,2643.6,0.37829]
[1727078760856,0.74553,2644.1,2643.5,6.2526276]
[1727078761141,0.3673,2644.1,2643.7,0.37826]
[1727078761347,3.6041,2644.3,2643.7,0.37826]
[1727078761348,3.2078,2644.3,2643.8,0.77095]
[1727078761548,3.2078,2644.3,2643.9,0.3812]
[1727078761549,0.3782,2644.2,2643.9,0.3812]
[1727078761848,0.37822,2644.1,2643.9,0.3812]
[1727078762154,0.37823,2644.0,2643.9,0.3812]
[1727078762748,0.37824,2643.9,2643.8,0.3797]
[1727078763154,3.7824,2643.9,2643.5,1.3767276]
[1727078763454,0.3845,2643.8,2643.5,0.3919]
[1727078763751,0.37829,2643.6,2643.5,0.3919]
[1727078764160,0.3845,2643.8,2643.4,0.7317]
[1727078764451,0.3783,2643.5,2643.4,0.7317]
[1727078764657,0.3783,2643.5,2643.4,0.3674]
[1727078766152,0.37829,2643.6,2643.4,0.3674]
[1727078766358,0.3783,2643.5,2643.4,0.3674]
[1727078767458,0.37829,2643.6,2643.4,0.3674]
[1727078767652,3.2078,2643.7,2643.4,0.3674]
[1727078767950,3.58608,2643.7,2643.5,0.3929]
[1727078768153,3.2078,2643.7,2643.5,2.4529]
[1727078768359,3.2078,2643.7,2643.5,3.4377276]
[1727078768950,3.2078,2643.7,2643.5,3.8160176]
[1727078769551,0.37826,2643.8,2643.6,0.9848276]
[1727078769753,0.37826,2643.8,2643.7,0.3879]
[1727078770153,0.37829,2643.7,2643.5,1.3777276]
[1727078770357,3.58609,2643.6,2643.5,0.9848276]
[1727078770549,9.8142,2643.6,2643.3,0.9848276]
[1727078770855,0.37833,2643.3,2643.2,4.1926276]
[1727078771049,0.37833,2643.3,2643.2,4.55162444]
[1727078772150,5.10736,2643.3,2643.2,0.98899469]
[1727078772458,0.37839,2642.9,2642.8,0.98899469]
[1727078772661,0.37841,2642.7,2642.6,0.98899469]
[1727078773457,0.3652,2642.8,2642.5,1.75539469]
[1727078773763,0.37843,2642.6,2642.5,1.75539469]
[1727078773955,0.37843,2642.6,2642.5,0.7664]
[1727078774154,0.37843,2642.6,2642.5,1.75539469]
[1727078774364,0.37843,2642.6,2642.5,0.3859]
[1727078775361,0.37844,2642.5,2642.4,0.98899469]
[1727078775560,0.37844,2642.5,2642.2,1.4772414]
[1727078775561,0.37844,2642.5,2642.3,0.98899469]
[1727078776462,0.37844,2642.5,2642.2,1.34949469]
[1727078776664,3.573,2642.8,2642.2,0.98899469]
[1727078776965,2.06,2642.3,2642.0,0.98899469]
[1727078777153,0.3785,2642.1,2642.0,0.98899469]
[1727078777354,0.369,2642.2,2641.9,0.3605]
[1727078777355,0.37852,2642.0,2641.9,0.3605]
[1727078777763,0.369,2642.2,2641.9,0.3605]
[1727078777764,0.37851,2642.1,2641.9,0.3605]
[1727078777947,0.369,2642.2,2641.9,0.3605]
[1727078778350,0.37852,2642.0,2641.9,0.3605]
[1727078779157,0.369,2642.2,2641.9,0.3605]
[1727078779457,0.3785,2642.1,2641.9,0.3605]
[1727078779651,0.37852,2642.0,2641.9,0.3605]
[1727078780058,3.2078,2642.4,2641.9,10.1453]
[1727078780253,0.37844,2642.6,2642.1,2.06]
[1727078780456,3.2078,2642.7,2642.2,0.3809]
[1727078780457,3.58622,2642.7,2642.2,0.3809]
[1727078780658,3.58622,2642.7,2642.3,0.3924]
[1727078780960,3.58622,2642.7,2642.4,0.3746]
[1727078781453,3.2078,2642.7,2642.4,0.3746]
[1727078783665,3.2078,2642.7,2642.4,0.75306]
[1727078783959,4.127,2643.1,2642.5,2.06]
[1727078784161,3.2078,2643.2,2642.5,2.06]
[1727078784162,0.37835,2643.2,2642.5,2.06]
[1727078784463,0.37838,2643.0,2642.5,2.06]
[1727078784666,4.7279,2643.4,2642.6,0.37842]
[1727078784867,0.37837,2643.1,2642.6,0.37842]
[1727078785058,3.58617,2643.1,2642.7,0.76181]
[1727078785664,3.58617,2643.1,2642.8,0.3661]
[1727078785864,0.37839,2642.9,2642.8,0.3661]
[1727078786060,0.3784,2642.8,2642.7,0.3834]
[1727078788273,0.3784,2642.9,2642.7,0.3834]
[1727078788573,0.37839,2642.9,2642.7,0.3834]
[1727078789368,3.2078,2643.1,2642.7,0.3834]
[1727078789568,3.58616,2643.1,2642.8,0.3806]
[1727078789878,0.37836,2643.1,2642.9,0.3731]
[1727078790174,0.37835,2643.2,2642.9,0.3731]
[1727078790374,0.37836,2643.1,2642.9,0.3731]
[1727078790579,0.37835,2643.2,2642.9,0.3731]
[1727078790892,3.58616,2643.1,2642.9,0.3731]
[1727078791062,0.37837,2643.0,2642.9,0.3731]
[1727078791263,0.3784,2642.9,2642.7,0.3834]
[1727078791473,0.3784,2642.8,2642.7,0.3834]
[1727078792272,3.784,2642.8,2642.5,0.3731]
[1727078792472,0.37843,2642.6,2642.5,0.3731]
[1727078793470,0.37842,2642.7,2642.5,0.3731]
[1727078793678,0.37843,2642.6,2642.5,0.3731]
[1727078796269,0.37844,2642.5,2642.4,0.3795]
[1727078797470,3.58624,2642.5,2642.4,0.3795]
[1727078798177,3.58624,2642.5,2642.3,0.1081]
[1727078798384,0.37846,2642.4,2642.3,0.1081]
[1727078798974,5.10941,2642.4,2642.3,0.1081]
[1727078799173,5.87321,2642.4,2642.3,0.1081]
[1727078799369,11.87321,2642.4,2642.3,0.1081]
[1727078801174,0.37854,2641.8,2641.7,0.3599]
[1727078802375,0.37856,2641.7,2641.6,0.3804]
[1727078803471,0.37859,2641.6,2641.2,0.7793]
[1727078803674,0.37859,2641.6,2641.3,0.3603]
[1727078804277,0.37858,2641.6,2641.3,0.3603]
[1727078804481,0.37857,2641.7,2641.3,0.3603]
[1727078804675,0.37855,2641.8,2641.3,0.3603]
[1727078804880,0.37854,2641.8,2641.3,0.3603]
[1727078805283,0.37856,2641.7,2641.3,0.3603]
[1727078805887,6.3925,2641.9,2641.3,0.3603]
[1727078806080,7.72354,2641.9,2641.3,0.3603]
[1727078806279,0.3786,2641.4,2641.3,0.3603]
[1727078806478,0.37859,2641.5,2641.3,0.3603]
[1727078808581,0.37,2641.6,2641.3,0.3603]
[1727078808984,0.37855,2641.8,2641.3,0.3603]
[1727078809189,2.8182,2641.9,2641.3,0.73891]
[1727078809190,4.1748,2641.9,2641.3,0.73891]
[1727078809392,4.1748,2641.9,2641.3,0.3603]
[1727078809579,0.37858,2641.6,2641.3,0.3603]
[1727078809777,3.58637,2641.7,2641.3,0.3603]
[1727078809981,3.2078,2641.7,2641.3,0.3603]
[1727078810183,6.9916,2641.9,2641.2,3.2078]
[1727078810389,6.9916,2641.9,2641.3,0.3862]
[1727078810688,0.37856,2641.7,2641.3,0.3862]
[1727078811083,0.37858,2641.6,2641.3,0.3862]
[1727078811280,0.37857,2641.7,2641.3,0.76481]
[1727078811589,0.37856,2641.7,2641.3,0.3862]
[1727078812089,0.37857,2641.6,2641.3,0.3862]
[1727078812387,0.37859,2641.5,2641.3,0.3862]
[1727078814191,0.37858,2641.6,2641.3,0.3862]
[1727078814702,0.37859,2641.5,2641.3,0.3862]
[1727078815492,0.31689806,2641.5,2641.3,0.3862]
[1727078816087,0.37858,2641.6,2641.3,0.3862]
[1727078817180,2.58868098,2642.2,2641.3,0.3862]
[1727078817181,4.15401,2642.3,2641.5,2.06]
[1727078817380,0.37855,2641.8,2641.6,0.7793]
[1727078817890,0.37854,2641.9,2641.6,0.7793]
[1727078818091,0.37855,2641.8,2641.6,0.7793]
[1727078818291,0.37856,2641.7,2641.6,0.397]
[1727078819287,0.37859,2641.5,2641.3,3.9763]
[1727078819484,0.37859,2641.5,2641.3,4.3559]
[1727078819689,2.08973,2641.9,2641.3,3.9736]
[1727078819690,3.2078,2641.7,2641.3,3.9736]
[1727078819886,0.3786,2641.4,2641.3,3.9736]
[1727078820897,3.2078,2641.7,2641.3,3.9736]
[1727078821087,0.94624,2642.2,2641.3,3.9736]
[1727078821088,10.34098,2642.4,2641.5,2.06]
[1727078821293,0.37855,2641.8,2641.4,0.75889]
[1727078821484,3.2078,2642.0,2641.4,0.3803]
[1727078821792,0.37856,2641.7,2641.4,0.3803]
[1727078822287,0.37858,2641.6,2641.4,0.3803]
[1727078822789,6.21413,2642.0,2641.4,0.3803]
[1727078822790,0.37857,2641.7,2641.4,0.3803]
[1727078822978,0.37855,2641.8,2641.4,0.7589]
[1727078823384,0.37853,2641.9,2641.5,0.37858]
[1727078823791,0.37855,2641.8,2641.5,0.37858]
[1727078824893,0.37857,2641.7,2641.4,0.3803]
[1727078825086,3.2078,2642.0,2641.4,0.3803]
[1727078825391,0.37858,2641.6,2641.4,0.3803]
[1727078825699,0.37859,2641.5,2641.4,0.3803]
[1727078825992,0.37858,2641.6,2641.4,0.3803]
[1727078827793,0.37857,2641.7,2641.4,0.3803]
[1727078828194,0.37857,2641.7,2641.4,0.7589]
[1727078828896,0.37857,2641.6,2641.4,0.3803]
[1727078829094,0.37856,2641.7,2641.4,0.7589]
[1727078829491,0.37855,2641.8,2641.5,0.37858]
[1727078829790,0.37856,2641.7,2641.5,0.37858]
[1727078830100,0.37856,2641.7,2641.4,0.3803]
[1727078830596,0.37856,2641.7,2641.4,0.75889]
[1727078831190,0.37856,2641.7,2641.4,1.74788469]
[1727078831397,0.94637,2641.8,2641.3,4.19679469]
[1727078831595,0.3786,2641.5,2641.3,3.2078]
[1727078831892,0.3786,2641.4,2641.3,4.19679469]
[1727078832189,0.3786,2641.4,2641.3,3.2078]
[1727078832395,0.3786,2641.4,2641.3,6.9934]
[1727078833492,0.3668,2641.6,2641.3,6.9934]
[1727078833493,0.3786,2641.5,2641.3,6.9934]
[1727078833698,0.37858,2641.6,2641.3,3.58641]
[1727078833895,0.37858,2641.6,2641.3,3.58642]
[1727078834092,3.5981,2641.7,2641.4,0.37859]
[1727078834093,3.97666,2641.7,2641.4,0.37859]
[1727078834294,0.37856,2641.8,2641.3,4.19679469]
[1727078834490,4.5635,2641.9,2641.3,4.19679469]
[1727078834689,0.37856,2641.7,2641.4,1.36758469]
[1727078834897,0.37856,2641.7,2641.4,0.37859]
[1727078835099,0.37856,2641.7,2641.5,0.3629]
[1727078835303,0.37856,2641.7,2641.6,0.3875]
[1727078837697,0.37857,2641.6,2641.5,1.35189469]
[1727078837902,0.94637,2641.8,2641.4,0.98899469]
[1727078838297,0.37858,2641.6,2641.4,0.98899469]
[1727078838497,0.37858,2641.6,2641.5,0.98899469]
[1727078838899,0.37857,2641.7,2641.5,0.98899469]
[1727078839103,0.37857,2641.6,2641.4,0.98899469]
[1727078839324,0.37859,2641.5,2641.4,0.98899469]
[1727078839603,0.94636,2641.9,2641.4,0.98899469]
[1727078839604,0.37858,2641.6,2641.4,0.98899469]
[1727078839799,0.37859,2641.5,2641.4,0.98899469]
[1727078840002,2.06,2641.5,2641.2,1.74799469]
[1727078840196,0.37861,2641.4,2641.2,1.74799469]
[1727078840597,0.37863,2641.2,2641.1,0.98899469]
[1727078841315,0.37864,2641.1,2641.0,0.98899469]
[1727078841598,0.37864,2641.2,2640.9,4.6850414]
[1727078841799,3.753,2641.4,2640.9,4.6850414]
[1727078841800,0.37861,2641.4,2641.1,0.99082139]
[1727078842007,0.37862,2641.3,2641.2,1.36502139]
[1727078842204,0.37861,2641.4,2641.2,2.11439951]
[1727078842508,0.3786,2641.4,2641.3,0.99059951]
[1727078843002,0.37867,2640.9,2640.8,1.9696552]
[1727078843201,0.37873,2640.6,2640.4,0.7685]
[1727078843420,0.7443,2641.5,2640.6,0.37871]
[1727078843421,4.50563,2641.2,2640.6,0.37871]
[1727078843596,0.37861,2641.4,2640.8,0.37868]
[1727078843797,0.37861,2641.4,2640.9,2.0982372]
[1727078844003,3.2078,2641.3,2641.0,1.3486372]
[1727078844206,4.1316,2641.5,2640.9,1.51477]
[1727078844405,4.127,2641.6,2641.0,1.33605495]
[1727078844594,0.37862,2641.3,2641.1,1.33627979]
[1727078844906,0.37862,2641.3,2641.0,0.3865]
[1727078845096,0.37862,2641.3,2641.1,1.33638069]
[1727078845296,2.06,2641.2,2640.8,1.9696552]
[1727078845504,2.06,2641.2,2640.6,1.1787]
[1727078845808,3.2078,2641.4,2640.7,1.336608]
[1727078845999,0.37861,2641.4,2640.8,1.715288]
[1727078846203,0.37862,2641.3,2640.9,1.336608]
[1727078846505,0.37861,2641.4,2641.0,1.336608]
[1727078846704,0.37861,2641.4,2641.1,1.1787]
[1727078846906,0.37864,2641.2,2640.7,1.9696552]
[1727078847099,0.37865,2641.1,2640.8,2.09744128]
[1727078847300,0.37865,2641.1,2640.9,1.33604128]
[1727078847500,2.06,2641.2,2640.6,1.9696552]
[1727078847501,0.37866,2641.0,2640.6,1.9696552]
[1727078847695,0.37869,2640.8,2640.7,1.33616726]
[1727078847908,0.37868,2640.9,2640.5,0.7564]
[1727078848104,0.37868,2640.9,2640.6,1.33662932]
[1727078848309,0.37869,2640.8,2640.5,0.7564]
[1727078848605,9.4045,2641.0,2640.6,1.33630174]
[1727078848606,0.3787,2640.7,2640.6,1.33630174]
[1727078848809,0.3787,2640.8,2640.5,0.7564]
[1727078849206,0.37871,2640.7,2640.5,0.7564]
[1727078850110,0.37869,2640.8,2640.6,1.33611872]
[1727078850411,0.37869,2640.8,2640.5,0.7564]
[1727078853899,0.37871,2640.7,2640.5,0.7564]
[1727078854099,0.37872,2640.6,2640.5,0.7564]
[1727078854607,3.7872,2640.6,2640.3,0.3656]
[1727078854811,0.37874,2640.5,2640.3,0.3656]
[1727078855010,5.2678,2640.7,2640.3,0.3656]
[1727078855011,0.37872,2640.6,2640.3,0.3656]
[1727078855510,0.37873,2640.5,2640.3,0.3656]
[1727078857411,0.37873,2640.6,2640.3,0.3656]
[1727078857610,0.37873,2640.5,2640.3,0.3656]
[1727078858313,0.37874,2640.4,2640.3,0.3656]
[1727078859414,2.43874,2640.5,2640.3,0.3656]
[1727078859608,5.64651,2640.7,2640.3,0.3656]
[1727078861115,3.754,2640.8,2640.3,0.74435]
[1727078861313,0.37869,2640.8,2640.3,0.3656]
[1727078861521,0.37869,2640.8,2640.3,0.74435]
[1727078862219,0.3787,2640.7,2640.3,0.74435]
[1727078862414,0.37872,2640.6,2640.3,0.3656]
[1727078863318,3.58651,2640.7,2640.3,0.3656]
[1727078863818,3.2078,2640.7,2640.3,0.3656]
[1727078864022,0.37873,2640.6,2640.3,0.3656]
[1727078866015,0.37873,2640.5,2640.3,0.3656]
[1727078866620,3.2078,2640.7,2640.3,0.3656]
[1727078866621,0.37873,2640.6,2640.3,0.3656]
[1727078867518,0.37873,2640.5,2640.3,0.3656]
[1727078868714,0.37872,2640.6,2640.3,0.3656]
[1727078870524,0.37874,2640.5,2640.3,0.3656]
[1727078870823,3.2078,2640.7,2640.3,0.3656]
[1727078871218,0.37874,2640.5,2640.3,0.3656]
[1727078871424,0.37874,2640.4,2640.3,0.3656]
[1727078873722,0.37874,2640.4,2640.3,0.4737]
[1727078875826,10.38061,2640.4,2640.3,0.1081]
[1727078876036,16.38061,2640.4,2640.3,0.1081]
[1727078876348,0.3788,2640.0,2639.9,0.3735]
[1727078876533,5.6466,2640.0,2639.9,0.3735]
[1727078876720,5.9257,2640.0,2639.9,0.3735]
[1727078876920,0.37883,2639.8,2639.6,0.3998]
[1727078877116,0.37883,2639.8,2639.7,0.3735]
[1727078877428,2.43883,2639.8,2639.7,0.3735]
[1727078878229,0.37883,2639.8,2639.7,0.3735]
[1727078880523,0.37882,2639.9,2639.7,0.3735]
[1727078880832,0.37882,2639.9,2639.8,0.3707]
[1727078881034,0.37883,2639.8,2639.7,0.3735]
[1727078881542,2.43883,2639.8,2639.7,0.3735]
[1727078881833,5.64663,2639.8,2639.7,0.3735]
[1727078882432,15.0558,2639.8,2639.2,3.2078]
[1727078882628,2.43888,2639.5,2639.2,3.2078]
[1727078882833,2.43888,2639.5,2639.3,0.3789]
[1727078883239,0.37889,2639.4,2639.3,0.3789]
[1727078883434,0.37891,2639.3,2639.1,0.763]
[1727078884444,0.37892,2639.2,2639.1,0.763]
[1727078884641,3.4872,2639.4,2639.1,0.763]
[1727078885241,0.37891,2639.3,2639.1,0.763]
[1727078885440,3.8661,2639.4,2639.1,0.763]
[1727078885636,3.2078,2639.4,2639.1,0.763]
[1727078885842,0.37889,2639.4,2639.1,0.763]
[1727078886238,2.43888,2639.5,2639.1,0.763]
[1727078887336,0.37889,2639.4,2639.1,0.763]
[1727078888743,1.61482,2639.8,2639.1,0.763]
[1727078888744,4.50582,2639.9,2639.4,0.37889]
[1727078888941,0.94689,2640.4,2639.2,3.7888]
[1727078888942,0.37884,2639.8,2639.5,0.3669]
[1727078889137,0.37884,2639.8,2639.6,0.7556]
[1727078889334,0.37884,2639.7,2639.6,0.7556]
[1727078889934,2.06,2640.1,2639.6,0.7556]
[1727078890241,2.06,2640.3,2639.6,0.7556]
[1727078890446,0.3788,2640.1,2639.6,1.13445]
[1727078890745,2.06,2640.0,2639.6,0.7556]
[1727078890947,0.37882,2639.9,2639.6,0.7556]
[1727078891343,2.06,2639.8,2639.6,0.7556]
[1727078893841,0.37881,2640.0,2639.7,3.788]
[1727078894041,0.37881,2640.0,2639.6,1.13446]
[1727078894244,0.37881,2640.0,2639.6,0.7556]
[1727078894747,2.43879,2640.1,2639.7,0.37884]
[1727078894945,2.06,2640.1,2639.8,0.37883]
[1727078895356,2.06,2640.1,2639.9,0.3963]
[1727078896456,2.43879,2640.1,2639.9,0.3963]
[1727078897046,2.06,2640.1,2639.9,0.3963]
[1727078897353,2.06,2640.3,2639.9,0.77511]
[1727078899451,2.06,2640.3,2639.9,0.3963]
[1727078899452,2.43877,2640.3,2639.9,0.3963]
[1727078900153,2.43876,2640.3,2640.0,3.2078]
[1727078900453,2.43876,2640.3,2640.1,0.7612]
[1727078901645,0.37875,2640.4,2640.1,0.7612]
[1727078902149,0.37872,2640.6,2640.1,1.13998]
[1727078902348,0.37874,2640.5,2640.1,0.7612]
[1727078902544,0.37873,2640.6,2640.1,1.13998]
[1727078902953,2.06,2640.7,2640.1,1.13998]
[1727078902954,0.37873,2640.5,2640.1,1.13998]
[1727078903153,0.37873,2640.5,2640.2,30.0]
[1727078903651,2.06,2640.7,2640.2,30.0]
[1727078903851,0.37869,2640.8,2640.3,3.96295]
[1727078904053,2.06,2640.9,2640.3,3.5842]
[1727078904253,7.614,2641.1,2640.5,0.37873]
[1727078904254,0.37867,2641.0,2640.5,0.37873]
[1727078904550,0.37867,2641.0,2640.6,0.7774]
[1727078904750,0.37867,2640.9,2640.6,0.7774]
[1727078904948,0.37867,2640.9,2640.7,0.3764]
[1727078905751,0.37866,2641.0,2640.7,0.3764]
[1727078905953,0.37868,2640.9,2640.7,0.3764]
[1727078906256,0.37869,2640.8,2640.7,0.3764]
[1727078907453,2.43868,2640.9,2640.7,0.3764]
[1727078907751,2.06,2640.9,2640.7,0.3764]
[1727078908352,7.71345,2641.1,2640.7,0.3764]
[1727078908353,9.77345,2641.1,2640.7,0.3764]
[1727078908748,3.5864,2641.5,2640.9,3.2078]
[1727078909062,0.37858,2641.6,2641.0,0.37866]
[1727078909358,0.37858,2641.6,2641.1,0.781]
[1727078909556,2.43857,2641.7,2641.1,1.52224]
[1727078909758,0.37857,2641.6,2641.1,1.52224]
[1727078910059,2.43857,2641.7,2641.1,1.52224]
[1727078910252,0.37857,2641.6,2641.2,0.37863]
[1727078910759,0.37858,2641.6,2641.1,1.52223]
[1727078910953,0.37857,2641.7,2641.2,0.37863]
[1727078911157,3.2078,2641.9,2641.2,5.2678]
[1727078911349,3.2078,2642.2,2641.5,3.2078]
[1727078911659,0.37846,2642.4,2641.9,0.37853]
[1727078912257,4.50545,2642.5,2642.0,0.37851]
[1727078912459,4.50545,2642.5,2642.1,0.3627]
[1727078912763,0.37844,2642.6,2642.2,0.3955]
[1727078913357,2.3392,2642.7,2642.2,0.3955]
[1727078913557,2.06,2642.7,2642.2,0.3955]
[1727078914158,0.37843,2642.6,2642.2,0.3955]
[1727078914359,3.754,2642.8,2642.2,1.15319]
[1727078914360,0.37841,2642.8,2642.2,1.15319]
[1727078914562,2.06,2642.9,2642.2,0.7747]
[1727078914966,2.06,2642.9,2642.4,0.37846]
[1727078915467,3.753,2643.1,2642.4,0.37846]
[1727078915468,2.43836,2643.1,2642.5,0.37844]
[1727078915658,2.43836,2643.1,2642.6,0.37843]
[1727078915852,0.2792,2643.4,2642.4,3.2078]
[1727078915853,2.06,2643.3,2642.7,0.37841]
[1727078916059,2.06,2643.3,2642.8,0.3876]
[1727078916362,2.43834,2643.3,2642.8,1.1317]
[1727078916552,2.43834,2643.3,2642.8,0.7533]
[1727078916757,2.43834,2643.3,2642.8,1.1317]
[1727078916951,0.37835,2643.2,2642.8,0.7533]
[1727078917564,2.43833,2643.3,2642.8,1.1317]
[1727078917757,2.43833,2643.3,2642.8,1.524]
[1727078917959,3.65882129,2645.8,2643.1,2.43835]
[1727078917960,5.2678,2644.0,2643.1,2.43835]
[1727078918163,5.2678,2644.0,2643.2,0.37834]
[1727078918164,0.37826,2643.8,2643.2,0.37834]
[1727078918359,0.37827,2643.7,2643.3,30.0]
[1727078918560,0.37827,2643.7,2643.4,0.3621]
[1727078918757,0.37828,2643.7,2643.4,0.3621]
[1727078918964,5.5466,2644.0,2643.4,0.3621]
[1727078919161,0.37827,2643.8,2643.4,0.3621]
[1727078919863,3.2078,2644.0,2643.4,3.5699]
[1727078920066,3.2078,2644.0,2643.5,0.3783]
[1727078920559,3.2078,2644.0,2643.6,0.37828]
[1727078920760,3.2078,2644.0,2643.7,0.37826]
[1727078920966,6.187,2644.5,2643.9,0.37824]
[1727078921167,6.187,2644.5,2643.9,0.37823]
[1727078921168,6.56517,2644.5,2643.9,0.37823]
[1727078921356,6.56517,2644.5,2643.9,0.37824]
[1727078921557,0.37817,2644.4,2643.8,0.37825]
[1727078922064,0.37815,2644.6,2644.1,0.37821]
[1727078922264,2.43814,2644.7,2644.2,0.3803]
[1727078922968,0.37814,2644.7,2644.2,0.3803]
[1727078924061,0.37814,2644.7,2644.3,30.0]
[1727078925068,3.2078,2644.8,2644.3,30.0]
[1727078925458,0.37813,2644.7,2644.3,30.0]
[1727078926071,6.84391,2644.9,2644.3,30.0]
[1727078926369,6.187,2644.9,2644.3,30.0]
[1727078926569,2.43811,2644.9,2644.3,30.37818]
[1727078927068,0.37811,2644.9,2644.3,33.58598]
[1727078927872,0.37809,2645.0,2644.4,2.43816]
[1727078928069,0.37808,2645.1,2644.5,0.37816]
[1727078928368,5.2678,2645.2,2644.5,0.37816]
[1727078928369,0.37809,2645.0,2644.5,0.37816]
[1727078928671,3.2078,2645.2,2644.5,0.37816]
[1727078928871,3.2078,2645.2,2644.4,2.06]
[1727078928872,0.37809,2645.0,2644.4,2.43817]
[1727078929367,3.2078,2645.2,2644.3,33.2078]
[1727078929368,0.37811,2644.8,2644.3,33.2078]
[1727078929568,6.21295,2645.2,2644.4,0.37817]
[1727078929569,0.37811,2644.9,2644.4,0.37817]
[1727078930175,0.37809,2645.0,2644.4,0.37816]
[1727078930466,0.37809,2645.0,2644.3,33.2078]
[1727078930467,0.37811,2644.8,2644.3,33.2078]
[1727078930767,2.06,2644.9,2644.2,0.7749]
[1727078930971,0.37815,2644.6,2644.3,3.2078]
[1727078931464,0.37814,2644.7,2644.3,3.2078]
[1727078931771,0.37815,2644.6,2644.3,3.2078]
[1727078931970,3.2078,2644.8,2644.2,0.3803]
[1727078932173,0.37817,2644.4,2644.2,0.3803]
[1727078938080,0.37819,2644.3,2644.2,0.3803]
[1727078939468,3.2078,2644.4,2643.8,0.3641]
[1727078939674,2.06,2644.6,2643.9,0.3676]
[1727078939970,0.37819,2644.3,2643.9,0.3676]
[1727078941082,0.37819,2644.3,2644.0,3.2078]
[1727078941376,0.37818,2644.4,2644.0,3.2078]
[1727078941580,0.37814,2644.7,2644.3,3.2078]
[1727078941771,4.127,2645.0,2644.5,2.06]
[1727078941772,4.50509,2645.0,2644.5,2.06]
[1727078941971,0.37808,2645.1,2644.7,2.06]
[1727078942181,0.2781,2645.3,2644.7,5.2678]
[1727078942476,0.37804,2645.3,2645.0,2.06]
[1727078942681,4.127,2645.5,2645.1,0.3644]
[1727078942682,0.37803,2645.4,2645.1,0.3644]
[1727078942878,0.37803,2645.4,2645.2,2.06]
[1727078943077,0.37803,2645.4,2645.2,2.4579]
[1727078943272,0.37804,2645.3,2645.2,2.4579]
[1727078943471,0.37804,2645.3,2645.2,0.3979]
[1727078943669,0.378,2645.6,2645.2,12.2379]
[1727078943872,0.94478,2646.3,2645.2,12.2379]
[1727078943873,3.2078,2646.1,2645.4,2.06]
[1727078944180,3.2078,2646.1,2645.7,2.06]
[1727078944381,0.37794,2646.0,2645.7,2.06]
[1727078945685,0.37796,2645.9,2645.7,2.06]
[1727078946087,0.15559059,2646.3,2645.7,2.06]
[1727078946381,10.02254,2646.4,2645.3,2.06]
[1727078946382,0.37799,2645.7,2645.3,2.06]
[1727078946584,3.2078,2646.1,2645.4,30.0]
[1727078946789,3.2078,2645.5,2645.2,0.3979]
[1727078947087,0.37803,2645.4,2645.2,0.3979]
[1727078948296,0.37803,2645.4,2644.6,3.81]
[1727078948297,3.78,2645.3,2644.6,5.2678]
[1727078948582,0.37809,2645.0,2644.7,0.383]
[1727078948787,0.37809,2645.0,2644.7,30.383]
[1727078949087,3.00511,2645.3,2644.7,30.383]
[1727078949487,0.37809,2645.0,2644.7,30.383]
[1727078950076,0.94511,2645.3,2644.7,30.383]
[1727078950276,0.37808,2645.1,2644.7,30.383]
[1727078950476,0.37802,2645.5,2645.0,0.37808]
[1727078950778,3.2078,2645.7,2645.3,2.06]
[1727078950779,0.378,2645.6,2645.3,2.06]
[1727078951084,0.94497,2645.7,2645.4,0.3657]
[1727078951285,0.37808,2645.1,2644.9,3.2078]
[1727078951490,3.81,2645.8,2644.9,5.2678]
[1727078951491,4.15274,2645.8,2644.9,5.2678]
[1727078951781,0.37796,2646.0,2645.7,2.06]
[1727078951987,0.37795,2646.0,2645.8,0.3657]
[1727078952384,0.37796,2645.9,2645.8,0.3657]
[1727078952582,0.37795,2646.0,2645.8,0.3657]